Cogmind - Beta 13 @@@ ROGUE MODE // 2024.07.07 @ 02:57:48 Player: Duduxx Result: Self-destructed Performance ------------- Evolutions (1) 500 Regions Visited (4) 800 Robots Destroyed (30) 150 Value Destroyed (675) 675 Prototype IDs (27) 540 Alien Tech Used (0) 0 Bonus (333) 333 TOTAL SCORE: 2998 Bonus ------- High Alert Combat Kills 33 Aligned with FarCom 300 Cogmind --------- Core Integrity 4/400 Matter 438/500 Energy 250/250 System Corruption 0% Temperature Cool (0) Movement Walking (190) Ox1 Location -9/Exiles Parts ------- > --- POWER (1) -------- Ion Engine > --- PROPULSION (2) --- Aluminum Leg Improved Aluminum Leg > --- UTILITY (4) ------ Medium Storage Unit High-capacity Matter Pod Core Shielding Skeleton Box > --- WEAPON (2) ------- Medium Laser Small Laser > --- INVENTORY (10) --- Light Ion Engine Improved Ion Engine Hover Unit Improved Hover Unit High-capacity Battery (250) Small Laser Light Assault Rifle Light Assault Rifle Improved Light Cannon Grenade Launcher Peak State ------------ > --- POWER ------------ Ion Engine > --- PROPULSION ------- Aluminum Leg Improved Aluminum Leg > --- UTILITY ---------- Medium Storage Unit High-capacity Matter Pod Core Shielding Skeleton Box > --- WEAPON ----------- Medium Laser Small Laser > --- INVENTORY -------- Light Ion Engine Improved Ion Engine Hover Unit Improved Hover Unit High-capacity Battery Small Laser Light Assault Rifle Light Assault Rifle Improved Light Cannon Grenade Launcher [Rating: 16] Favorites ----------- Power Light Ion Engine Engine Light Ion Engine Propulsion Aluminum Leg Treads Light Treads Leg Aluminum Leg Flight Unit Flight Unit Utility Medium Storage Unit Device Skeleton Box Storage Medium Storage Unit Protection Core Shielding Weapon Medium Laser Energy Gun Medium Laser Ballistic Gun Light Assault Rifle Build | -11 -10 -9 -9 -9 ------- Run | Yrd Mat Mat Min Exi Slots Evolved 2 | . . 2 . . Power . | . . . . . Propulsion . | . . . . . Utility 2 | . . 2 . . Weapon . | . . . . . Parts Attached 30 | 6 3 11 9 1 Power 5 | 1 . 3 1 . Engine 5 | 1 . 3 1 . Core . | . . . . . Reactor . | . . . . . Propulsion 9 | 2 1 3 3 . Treads 2 | . . 2 . . Leg 6 | 2 1 . 3 . Wheel . | . . . . . Hover . | . . . . . Flight 1 | . . 1 . . Utility 8 | 1 2 1 3 1 Device 1 | . . . . 1 Storage 4 | 1 1 . 2 . Processor . | . . . . . Hackware . | . . . . . Protection 3 | . 1 1 1 . Artifact . | . . . . . Weapon 8 | 2 . 4 2 . Energy Gun 5 | 1 . 2 2 . Energy Cannon . | . . . . . Ballistic Gun 3 | 1 . 2 . . Ballistic Cannon . | . . . . . Launcher . | . . . . . Special Weapon . | . . . . . Impact Weapon . | . . . . . Slashing Weapon . | . . . . . Piercing Weapon . | . . . . . Special Melee Weapon . | . . . . . Unidentified Prototypes 1 | . . . . 1 Parts Lost 15 | . . 9 6 . Power 4 | . . 3 1 . Propulsion 5 | . . 3 2 . Utility 2 | . . 1 1 . Weapon 4 | . . 2 2 . Highest Loss Streak 6 | . . 6 6 . To Critical Strikes . | . . . . . Average Slot Usage (%) 87 | . 94 73 84 100 Engine 11 | . 14 10 10 11 Treads 4 | . . 14 3 . Leg 15 | . 28 4 10 22 Storage 20 | . 14 11 27 30 Protection 10 | . 8 11 9 11 Energy Gun 15 | . 14 16 11 22 Ballistic Gun 6 | . 14 4 9 . Naked Turns . | . . . . . Heaviest Build 28 | 11 17 26 28 27 Greatest Support 40 | 20 20 40 23 23 Greatest Overweight (x) 9 | 3 . 1 9 1 Average Overweight (x) . | . . . 1 . Largest Inventory Capacity 10 | 8 10 10 10 10 Average Capacity 9 | 7 9 10 10 10 Most Carried 10 | 4 9 10 10 10 Average Carried 7 | 2 5 7 8 9 Final Capacity 10 | 8 10 10 10 10 Final Carried 10 | 4 8 10 9 10 Class Distribution -------------------- 64% | Mutant 35% | Scavenger-Mutant Dominant Class ---------------- Mutant | -10/Materials Mutant | -9/Materials Scavenger-Mutant | -9/Mines Scavenger-Mutant | -9/Exiles Resources | -11 -10 -9 -9 -9 ----------- Run | Yrd Mat Mat Min Exi Matter Collected 690 | 183 110 293 104 . Remotely . | . . . . . Salvage Created 863 | . 142 495 226 . Parts 59 | . 11 39 9 . Haulers Intercepted . | . . . . . Recyclers Shooed 1 | . . 1 . . Parts Field Recycled . | . . . . . Retrieved Matter . | . . . . . Parts Self-Destructed . | . . . . . Prevented . | . . . . . Kills | -11 -10 -9 -9 -9 ------- Run | Yrd Mat Mat Min Exi Combat Hostiles Destroyed 29 | . 5 19 5 . Guns 29 | . 5 19 5 . Classes Destroyed 5 | . 2 2 1 . Worker 1 | . . 1 . . Swarmer 16 | . 3 13 . . Grunt 9 | . 2 3 4 . Duelist 1 | . . . 1 . Sentry 3 | . . 3 . . Best Kill Streak 8 | . 3 8 2 . Combat Bots Only 8 | . 3 8 2 . Max Kills in Single Turn 2 | . 1 2 1 . Gunslinging 1 | . . 1 . . Exploded . | . . . . . Melee . | . . . . . Uniques/NPCs Destroyed . | . . . . . Combat | -11 -10 -9 -9 -9 -------- Run | Yrd Mat Mat Min Exi Hostile Shots Fired 235 | . 14 157 64 . Missed 60 | . 4 42 14 . Damage Taken 2037 | . 168 1074 795 . Core 404 | . 8 262 134 . Absorbed by Shields . | . . . . . Redirected to Shielding 52 | . 1 49 2 . Core Remaining (%) 98 | 100 96 . . . Volleys Fired 88 | . 10 46 32 . Largest 2 | . 2 2 2 . Hottest 90 | . 70 90 90 . Shots Fired 166 | . 20 92 54 . Gun 166 | . 20 92 54 . Cannon . | . . . . . Launcher . | . . . . . Special . | . . . . . Kinetic 59 | . 10 16 33 . Thermal 107 | . 10 76 21 . Explosive . | . . . . . Electromagnetic . | . . . . . Robot Hit Streak 11 | . 5 11 9 . Robot Miss Streak 3 | . 2 3 3 . Penetration Max . | . . . . . Secondary Targets 6 | . 1 5 . . Max Gunslinging Chain 1 | . 1 1 . . Shots Hit Robots 116 | . 13 62 41 . Core Hits 48 | . 8 29 11 . Critical Kills . | . . . . . Critical Parts Destroyed . | . . . . . Critical Strikes 3 | . . 3 . . Burn 3 | . . 3 . . Melee Attacks . | . . . . . Impact . | . . . . . Slashing . | . . . . . Piercing . | . . . . . Sneak Attacks . | . . . . . Combat Hostiles . | . . . . . Follow-up Attacks . | . . . . . Damage Inflicted 1421 | . 131 733 557 . Guns 1418 | . 131 733 554 . Cannons . | . . . . . Explosions . | . . . . . Melee . | . . . . . Ramming 3 | . . . 3 . Kinetic 582 | . 57 130 395 . Thermal 836 | . 74 603 159 . Explosive . | . . . . . Electromagnetic . | . . . . . Impact . | . . . . . Slashing . | . . . . . Piercing . | . . . . . Highest Corruption . | . . . . . Average Corruption . | . . . . . Corruption Purged . | . . . . . Corruption Blocked . | . . . . . Overload Shots . | . . . . . Overflow Damage . | . . . . . Projectiles . | . . . . . Explosions . | . . . . . Melee . | . . . . . Knockbacks . | . . . . . Impact . | . . . . . Kinetic . | . . . . . Secondary . | . . . . . Self-Inflicted Damage . | . . . . . Shots . | . . . . . Rammed . | . . . . . Targets Rammed 1 | . . . 1 . Kicked 1 | . . . 1 . Crushed . | . . . . . Highest Temperature 177 | . 173 177 117 . Average Temperature 60 | . 75 67 27 . Received Heat Transfer 510 | . 63 123 324 . Siege Activations . | . . . . . Robots Corrupted . | . . . . . Combat Hostiles . | . . . . . Parts Fried . | . . . . . Impact Corruptions . | . . . . . Robots Melted . | . . . . . Combat Hostiles . | . . . . . Parts Melted 8 | . . 6 2 . Heat Transferred 2488 | . 222 1868 398 . Parts Sabotaged . | . . . . . Parts Stolen . | . . . . . Parts Stripped . | . . . . . Power Chain Reactions . | . . . . . Alert | -11 -10 -9 -9 -9 ------- Run | Yrd Mat Mat Min Exi Peak Influence 540 | . 154 540 315 . Initial 210 | . . 65 210 . Average 212 | . 37 365 270 . Maximum Alert Level 2 | . . 2 1 . Low Security (%) 42 | 100 100 12 1 . Level 1 40 | . . 38 98 . Level 2 16 | . . 49 . . Level 3 . | . . . . . Level 4 . | . . . . . Level 5 . | . . . . . High Security . | . . . . . Max Security . | . . . . . Squads Dispatched 4 | . 2 2 . . Investigation 1 | . 1 . . . Extermination . | . . . . . Reinforcement 3 | . 1 2 . . Assault . | . . . . . Garrison . | . . . . . Intercept . | . . . . . Searches Triggered . | . . . . . Construction Impeded . | . . . . . Haulers Reinforced . | . . . . . Active Scanning Responses . | . . . . . Cargo Convoy Interrupts . | . . . . . Stealth | -11 -10 -9 -9 -9 --------- Run | Yrd Mat Mat Min Exi Distress Signals 5 | . . 5 . . Communications Jammed . | . . . . . Distress Signals . | . . . . . Times Spotted 39 | . 6 25 8 . Peak Tracking Total 10 | . 3 10 5 . Tactical Retreats 2 | . . 1 1 . Traps | -11 -10 -9 -9 -9 ------- Run | Yrd Mat Mat Min Exi Traps Triggered 1 | . 1 . . . Indirectly . | . . . . . Trap Hack Attempts . | . . . . . Triggered . | . . . . . Disarmed . | . . . . . Reprogrammed . | . . . . . Reused . | . . . . . Traps Extracted . | . . . . . Installed . | . . . . . Triggered . | . . . . . Machines | -11 -10 -9 -9 -9 ---------- Run | Yrd Mat Mat Min Exi Machines Disabled . | . . . . . Max in Single Turn . | . . . . . Machines Repaired . | . . . . . Machines Dismantled . | . . . . . Machines Sabotaged . | . . . . . Overloaded Fab Kills . | . . . . . Hacking | -11 -10 -9 -9 -9 --------- Run | Yrd Mat Mat Min Exi Machines Accessed 6 | . 4 1 . 1 Terminals 3 | . 3 . . . Fabricators . | . . . . . Repair Stations . | . . . . . Recycling Units 2 | . 1 1 . . Scanalyzers . | . . . . . Garrison Access . | . . . . . Total Hacks 13 | . 11 1 . 1 Successful 8 | . 6 1 . 1 Failed 5 | . 5 . . . Catastrophic 1 | . 1 . . . Database Lockouts . | . . . . . Manual 1 | . . . . 1 Terminals 9 | . 9 . . . Fabricators . | . . . . . Repair Stations . | . . . . . Recycling Units 3 | . 2 1 . . Scanalyzers . | . . . . . Garrison Access . | . . . . . Terminal Hacks 5 | . 4 . . 1 Prototype ID Bank 2 | . 2 . . . Emergency Access Points 1 | . 1 . . . Hauler Manifests 1 | . 1 . . . Derelict Proto ID Bank 1 | . . . . 1 Fabricator Hacks . | . . . . . Repair Station Hacks . | . . . . . Recycling Unit Hacks 3 | . 2 1 . . Report Inventory 2 | . 1 1 . . Retrieve Components 1 | . 1 . . . Scanalyzer . | . . . . . Garrison Access Hacks . | . . . . . Unauthorized Hacks . | . . . . . Terminals . | . . . . . Fabricators . | . . . . . Repair Stations . | . . . . . Recycling Units . | . . . . . Scanalyzers . | . . . . . Garrison Access . | . . . . . Data Cores Recovered . | . . . . . Used . | . . . . . Hacking Detections 3 | . 3 . . . Full Trace Events 2 | . 2 . . . Feedback Events . | . . . . . Feedback Blocked . | . . . . . Robot Schematics Acquired . | . . . . . Robots Built . | . . . . . Authchips . | . . . . . Time . | . . . . . Total Robot Build Rating . | . . . . . Part Schematics Acquired . | . . . . . Parts Built . | . . . . . Authchips . | . . . . . Time . | . . . . . Total Part Build Rating . | . . . . . Parts Repaired . | . . . . . Time . | . . . . . Parts Recycled . | . . . . . Recycled Matter . | . . . . . Retrieved Matter . | . . . . . Retrieved Components 2 | . 2 . . . Parts Scanalyzed . | . . . . . Part Schematics Acquired . | . . . . . Parts Damaged . | . . . . . Bothacking | -11 -10 -9 -9 -9 ------------ Run | Yrd Mat Mat Min Exi Used RIF Installer . | . . . . . Robots Hacked . | . . . . . Non-combat . | . . . . . Combat . | . . . . . Robot Hacks Applied . | . . . . . Relay Couplers Released . | . . . . . Fabnet Peak Effective % . | . . . . . Robots Rewired . | . . . . . Allies Hacked . | . . . . . Hacks Repelled . | . . . . . Allies | -11 -10 -9 -9 -9 -------- Run | Yrd Mat Mat Min Exi Total Allies . | . . . . . Largest Group . | . . . . . Highest-Rated Group . | . . . . . Highest-Rated Ally . | . . . . . Total Orders . | . . . . . Ally Attacks . | . . . . . Total Damage . | . . . . . Kills . | . . . . . Allies Corrupted . | . . . . . Allies Melted . | . . . . . Intel | -11 -10 -9 -9 -9 ------- Run | Yrd Mat Mat Min Exi Robot Analysis Total . | . . . . . Derelict Logs Recovered . | . . . . . Drone Launches . | . . . . . Drone Recoveries . | . . . . . Exploration | -11 -10 -9 -9 -9 ------------- Run | Yrd Mat Mat Min Exi Turns Passed 1377 | 74 330 368 301 304 Spaces Moved 666 | 50 242 124 91 159 Core 14 | 9 . . 5 . Treads 127 | . . 101 26 . Legs 525 | 41 242 23 60 159 Wheels . | . . . . . Hover . | . . . . . Flight . | . . . . . Fastest Speed 50 | 50 120 120 190 120 Average Speed 159 | 122 120 170 219 189 Slowest Speed 500 | 200 120 240 500 190 Overloaded Moves . | . . . . . Propulsion Burnouts . | . . . . . Robots Hopped . | . . . . . Cave-ins Triggered . | . . . . . Exploration Rate (%) 27 | 4 55 14 25 41 Regions Visited 4 Branch Regions 2 Pre-discovered Areas . | . . . . . Known Exits Taken . | . . . . . Unknown Exits Taken 4 | 1 1 1 1 . Scrap Searched 1 | . . . 1 . Spaces Dug . | . . . . . Terrain Destroyed . | . . . . . Melee . | . . . . . Projectile . | . . . . . AOE . | . . . . . Terrain Rammed . | . . . . . Walls Destroyed . | . . . . . Machines Disabled . | . . . . . Actions | -11 -10 -9 -9 -9 --------- Run | Yrd Mat Mat Min Exi Total 812 | 59 263 193 136 161 Wait 2 | . 2 . . . Move 662 | 49 241 123 90 159 Hop . | . . . . . Pick Up 18 | 4 4 8 2 . Fast Attach 21 | 6 2 6 6 1 Attach 8 | . . 5 3 . Detach 5 | . 1 2 1 1 Swap 1 | . 1 . . . Drop 6 | . 2 3 1 . Fire 88 | . 10 46 32 . Melee . | . . . . . Ram . | . . . . . Kick 1 | . . . 1 . Crush . | . . . . . Escape Stasis . | . . . . . Rewire . | . . . . . Trap . | . . . . . Miscellaneous . | . . . . . Route ------- -11/Scrapyard -10/Materials -9/Materials -9/Mines -9/Exiles History --------- Turn | Location | Event 20 | -11/Scrapyard | Discovered new exit (range 16) 75 | -11/Scrapyard | Entered Materials 314 | -10/Materials | Build established: Mutant 390 | -10/Materials | Discovered new exit (range 5) 405 | -10/Materials | Entered another Materials area 405 | -9/Materials | Evolved 2 slots: Utility x2 480 | -9/Materials | Destroyed 8 combat bots 524 | -9/Materials | Lost 6 parts (2p2n2w) 654 | -9/Materials | Discovered new exit (range 9) 685 | -9/Materials | Core integrity fell below 50% 736 | -9/Materials | Lost 3 parts (1p1n1u) 773 | -9/Materials | Entered Mines 854 | -9/Mines | Core integrity fell below 20% 942 | -9/Mines | Lost 6 parts (1p2n1u2w) 1064 | -9/Mines | Deemed a non-threat by the Exiles lab entrance 1066 | -9/Mines | Discovered new exit (range 5) 1074 | -9/Mines | Entered Exiles 1120 | -9/Exiles | Met 8R-AWN 1154 | -9/Exiles | Met EX-HEX 1203 | -9/Exiles | Build established: Scavenger-Mutant 1232 | -9/Exiles | Met EX-BIN 1253 | -9/Exiles | Aligned with FarCom system 1255 | -9/Exiles | Given EX-Vault access code 1308 | -9/Exiles | Opened EX-Vault 1316 | -9/Exiles | Found Prototype Device 1316 | -9/Exiles | Identified Skeleton Box 1378 | -9/Exiles | Warned to stay clear of 0b10 Research branches 1378 | -9/Exiles | Self-destructed Last Messages --------------- Chronowheel AWS/Thermal Latent Energy Streamer Gui. Plasma Cannon Firepult YOLO Cannon AWS/Gauss XL Autogun Array AWS/Autocannon Field Lobotomy Kit Longsword +1 Deploy-a-Sentry EX-BIN: Oh yeah, I'd suggest you stay away from the 0b10 Research branches, since the FarCom signals could be picked up there, but you're welcome to try if you really want to. And if we have to leave here due to unforeseen circumstances, don't worry the FarCom system will continue to maintain contact via our distributed network. Map ----- +----------------------------------------------------+ | | | ????????????????????#########????????????????????? | | ????????????????????# && #????????????????????? | | ????????????????????# & #????????????????????? | | ????????????????????# ] #????????????????????? | | ????????????????????# X#????????????????????? | | ????????????????????## ##????????????????????? | | ????????????????????#X #?????????????????????? | | ????????????????????## #?????????????????????? | | ?????????????????????# #?????????????????????? | | ?????????????????????# #???#?##??????????????? | | ?????????????????????# #??"""""??????????????? | | ?????????????????????# ## """#?????????????? | | ?????????????????????# X""#?????????????? | | ?????????????????????# ## """#?????????????? | | ???????????????####??# #??"""""??????????????? | | ???????????????"""""?# #???####??????????????? | | ???????????????""" ## #?????????????????????? | | ?????????????#""X" #?????????????????????? | | ?????????????#" #?????????????????????? | | ?????????????#" ## #?????????????????????? | | ?????????????#""""""?# #?#########???????????? | | ???????????????"###??# #?#"""""""#???????????? | | ?????????????????????# #?#"""""""#???????????? | | ?????????????????????# #?#"""""""#???????????? | | ????????????????????## @ ###"" """"#???????????? | | ????????????????????#" """"#???????????? | | ????????????????????#" """#???????????? | | ????????????????????#" """#???????????? | | ????????????????????#" c"""#???????????? | | ????????????????????#" """#???????????? | | ????????????????????#" """##??????????? | | ????????????????????## """""??????????? | | ?????????????????????# """##??????????? | | ?????????????????????#" "X" """""??????????? | | ?????????????????????#" """ #???????????? | | ?????????????????????#" """""""""#???????????? | | ????????????????????##" ###########???????????? | | ???????????????????##"" #?????????????????????? | | ???????????????#?###"" #?????????????????????? | | ???????????????""""""" ##????????????????????? | | ???????????????"" " "" ##???###########?????? | | ??????????????""" " #####"""""""""##????? | | ????????????" " " """ """"##???? | | ??????????? "" " #???? | | ??????????? " """#???? | | ??????????? " "#???? | | ??????????? " "##??? | | ??????????? ""###? | | ??????????? """""" """#? | +----------------------------------------------------+ Best States ------------- Heat Dissipation 28 Energy Generation 12 Energy Capacity 515 Matter Stores 455 Matter Capacity 500 Sight Range 16 Terrain Scan Density 10 Armor Coverage 150 Core Shielding 20 Evasion (%) 55 Recoil Reduction 2 Item Schematics ----------------- None Robot Schematics ------------------ None Fabricated ------------ Nothing Alien Tech Used ----------------- None Achievements -------------- None Challenges ------------ None Game ------ Seed EtherialDisposableInverter Manual? 0 Play Time 00:11:11 Cumulative 24.6 hours Start 2024.07.07 @ 02:39:06 End 2024.07.07 @ 02:57:48 Sessions 1 Manual Loads 0 Difficulty Rogue Special Mode None Game No. 57 Rogue 57 Adventurer 0 Explorer 0 Win Type - Total 0 Types 0/0/0/0/0/0/0/0/0 Lore% 22 Gallery% 28 Achievement% 20 Wizard Run 0 Options --------- Layout 1 ASCII 0 Keyboard 1 Movement Arrows Keybinds 0 Fullscreen 1 Font 24/Smallcaps Map View 50x35 Zoom Use 0% Tactical HUD 1 Map Filters NONE Filters NONE Steam 1 RUN: 50375d77-33ef-4251-8ed4-2447ace9c8de